{"text_format":"3","workbook":"xlsx","n_sheets":2,"sheets":["Протокол ШЭ ВОШ по предмету","Лист2"],"not_rendered":{"defined_names":1},"read":"whole","date_system":"1900"}

{"sheet":"Протокол ШЭ ВОШ по предмету","index":0,"n_rows":164,"n_cols":15,"rows_kept":164}
["№","Фамилия","Имя","Отчество","Дата рождения","Пол","Участник с ОВЗ (да/нет)","Класс обучения","Класс участия","Балл","Максимальный балл","Статус","Призёр муниципального этапа прошлого года","ФИО учителя","Место работы учителя"]
[1,"Сафин","Ильмир","Ильдарович","2011-06-01","м","нет",5,5,20,500,"участник","нет","Кудакаев Марат Радикович","Муниципальное бюджетное общеобразовательное учреждение \"Лицей-интернат №24\" г.Нижнекамска Республики Татарстан"]
[2,"Зайнуллин","Юсуф","Равилевич","2011-06-02","м","нет",5,5,36,500,"участник","нет","Кудакаев Марат Радикович","Муниципальное бюджетное общеобразовательное учреждение \"Лицей-интернат №24\" г.Нижнекамска Республики Татарстан"]
[3,"Зайнуллин","Амир","Ильдарович","2011-06-03","м","нет",5,5,110,500,"участник","нет","Кудакаев Марат Радикович","Муниципальное бюджетное общеобразовательное учреждение \"Лицей-интернат №24\" г.Нижнекамска Республики Татарстан"]
[4,"Добротворский","Даниял","Алексеевич","2011-06-04","м","нет",5,5,50,500,"участник","нет","Кудакаев Марат Радикович","Муниципальное бюджетное общеобразовательное учреждение \"Лицей-интернат №24\" г.Нижнекамска Республики Татарстан"]
[5,"Баязитов","Эмиль","Ленарович","2011-06-05","м","нет",5,5,50,500,"участник","нет","Кудакаев Марат Радикович","Муниципальное бюджетное общеобразовательное учреждение \"Лицей-интернат №24\" г.Нижнекамска Республики Татарстан"]
[6,"Аллун","Ильяс","Фейсалович","2011-06-06","м","нет",5,5,168,500,"участник","нет","Кудакаев Марат Радикович","Муниципальное бюджетное общеобразовательное учреждение \"Лицей-интернат №24\" г.Нижнекамска Республики Татарстан"]
[7,"Мухаметшин","Салават","Даниярович","2011-01-31","м","нет",5,5,416,500,"победитель","нет","Кудакаев Марат Радикович","Муниципальное бюджетное общеобразовательное учреждение \"Лицей-интернат №24\" г.Нижнекамска Республики Татарстан"]
[8,"Клевлин","Евгений","Александрович","2011-06-06","м","нет",5,5,36,500,"участник","нет","Кудакаев Марат Радикович","Муниципальное бюджетное общеобразовательное учреждение \"Лицей-интернат №24\" г.Нижнекамска Республики Татарстан"]
[9,"Долганов","Владимир","Андреевич","2011-06-07","м","нет",5,5,234,500,"участник","нет","Кудакаев Марат Радикович","Муниципальное бюджетное общеобразовательное учреждение \"Лицей-интернат №24\" г.Нижнекамска Республики Татарстан"]
[10,"Набиуллин","Амир","Ильмирович","2011-06-08","м","нет",5,5,154,500,"участник","нет","Кудакаев Марат Радикович","Муниципальное бюджетное общеобразовательное учреждение \"Лицей-интернат №24\" г.Нижнекамска Республики Татарстан"]
[11,"Кузьмин","Егор","Павлович","2011-06-09","м","нет",5,5,100,500,"участник","нет","Кудакаев Марат Радикович","Муниципальное бюджетное общеобразовательное учреждение \"Лицей-интернат №24\" г.Нижнекамска Республики Татарстан"]
[12,"Карнаухов","Глеб","Дмитриевич","2011-06-10","м","нет",5,5,33,500,"участник","нет","Кудакаев Марат Радикович","Муниципальное бюджетное общеобразовательное учреждение \"Лицей-интернат №24\" г.Нижнекамска Республики Татарстан"]
[13,"Мингазов","Булат","Маратович","2011-06-11","м","нет",5,5,166,500,"участник","нет","Кудакаев Марат Радикович","Муниципальное бюджетное общеобразовательное учреждение \"Лицей-интернат №24\" г.Нижнекамска Республики Татарстан"]
[14,"Шарафуллин","Салават","Линарович","2011-06-12","м","нет",5,5,216,500,"участник","нет","Кудакаев Марат Радикович","Муниципальное бюджетное общеобразовательное учреждение \"Лицей-интернат №24\" г.Нижнекамска Республики Татарстан"]
[15,"Галимов","Радмир","Русланович","2011-06-13","м","нет",5,5,100,500,"участник","нет","Кудакаев Марат Радикович","Муниципальное бюджетное общеобразовательное учреждение \"Лицей-интернат №24\" г.Нижнекамска Республики Татарстан"]
[16,"Хамидуллин","Рафаэль","Рамилевич","2011-06-14","м","нет",5,5,176,500,"участник","нет","Кудакаев Марат Радикович","Муниципальное бюджетное общеобразовательное учреждение \"Лицей-интернат №24\" г.Нижнекамска Республики Татарстан"]
[{"$f":" A17 + 1","v":17},"Валиев","Нариман","Ренатович","2011-06-15","м","нет",5,5,20,500,"участник","нет","Кудакаев Марат Радикович","Муниципальное бюджетное общеобразовательное учреждение \"Лицей-интернат №24\" г.Нижнекамска Республики Татарстан"]
[{"$f":" A18 + 1","v":18},"Хайрутдинов","Зиннур","Расулевич","2011-06-16","м","нет",5,5,40,500,"участник","нет","Кудакаев Марат Радикович","Муниципальное бюджетное общеобразовательное учреждение \"Лицей-интернат №24\" г.Нижнекамска Республики Татарстан"]
[19,"Хайруллин","Сагит","Ренатович","2011-06-17","м","нет",5,5,134,500,"участник","нет","Кудакаев Марат Радикович","Муниципальное бюджетное общеобразовательное учреждение \"Лицей-интернат №24\" г.Нижнекамска Республики Татарстан"]
[20,"Сибгатуллин","Ахмад","Булатович","2011-06-18","м","нет",5,5,80,500,"участник","нет","Кудакаев Марат Радикович","Муниципальное бюджетное общеобразовательное учреждение \"Лицей-интернат №24\" г.Нижнекамска Республики Татарстан"]
[21,"Каримов","Салават","Фаритович","2011-06-19","м","нет",5,5,0,500,"участник","нет","Кудакаев Марат Радикович","Муниципальное бюджетное общеобразовательное учреждение \"Лицей-интернат №24\" г.Нижнекамска Республики Татарстан"]
[22,"Сафин","Фатих","Ришатович","2011-06-20","м","нет",5,5,192,500,"участник","нет","Кудакаев Марат Радикович","Муниципальное бюджетное общеобразовательное учреждение \"Лицей-интернат №24\" г.Нижнекамска Республики Татарстан"]
[23,"Ахтямов","Булат","Маратович","2011-06-21","м","нет",5,5,20,500,"участник","нет","Кудакаев Марат Радикович","Муниципальное бюджетное общеобразовательное учреждение \"Лицей-интернат №24\" г.Нижнекамска Республики Татарстан"]
[24,"Цыганов","Илья","Алексеевич","2011-06-22","м","нет",5,5,52,500,"участник","нет","Кудакаев Марат Радикович","Муниципальное бюджетное общеобразовательное учреждение \"Лицей-интернат №24\" г.Нижнекамска Республики Татарстан"]
[25,"Кашапов","Рафаэль","Рамилевич","2011-06-23","м","нет",5,5,40,500,"участник","нет","Кудакаев Марат Радикович","Муниципальное бюджетное общеобразовательное учреждение \"Лицей-интернат №24\" г.Нижнекамска Республики Татарстан"]
[26,"Туйчин","Шамиль","Ленарович","2011-06-24","м","нет",5,5,88,500,"участник","нет","Кудакаев Марат Радикович","Муниципальное бюджетное общеобразовательное учреждение \"Лицей-интернат №24\" г.Нижнекамска Республики Татарстан"]
[27,"Можаев","Даниял","Константинович","2011-06-25","м","нет",5,5,52,500,"участник","нет","Кудакаев Марат Радикович","Муниципальное бюджетное общеобразовательное учреждение \"Лицей-интернат №24\" г.Нижнекамска Республики Татарстан"]
[28,"Гиззатуллин","Рамазан","Алмазович","2011-06-26","м","нет",5,5,16,500,"участник","нет","Кудакаев Марат Радикович","Муниципальное бюджетное общеобразовательное учреждение \"Лицей-интернат №24\" г.Нижнекамска Республики Татарстан"]
[29,"Хафизов","Тимур","Айратович","2011-06-27","м","нет",5,5,100,500,"участник","нет","Кудакаев Марат Радикович","Муниципальное бюджетное общеобразовательное учреждение \"Лицей-интернат №24\" г.Нижнекамска Республики Татарстан"]
[30,"Халиков","Ильяс","Ильнурович","2011-06-28","м","нет",5,5,100,500,"участник","нет","Кудакаев Марат Радикович","Муниципальное бюджетное общеобразовательное учреждение \"Лицей-интернат №24\" г.Нижнекамска Республики Татарстан"]
[31,"Юсупов","Даниил","Русланович","2011-06-29","м","нет",5,5,100,500,"участник","нет","Кудакаев Марат Радикович","Муниципальное бюджетное общеобразовательное учреждение \"Лицей-интернат №24\" г.Нижнекамска Республики Татарстан"]
[32,"Чепко","Богдан","Николаевич","2011-06-30","м","нет",5,5,97,500,"участник","нет","Кудакаев Марат Радикович","Муниципальное бюджетное общеобразовательное учреждение \"Лицей-интернат №24\" г.Нижнекамска Республики Татарстан"]
[33,"Абдуллин","Тимур","Давирович","2010-09-25","м","нет",6,6,310,500,"призер","нет","Кудакаев Марат Радикович","Муниципальное бюджетное общеобразовательное учреждение \"Лицей-интернат №24\" г.Нижнекамска Республики Татарстан"]
[{"$f":"A34 + 1","v":34},"Сулейманов","Карим","Ильмирович","2011-06-25","м","нет",6,6,244,500,"участник","нет","Кудакаев Марат Радикович","Муниципальное бюджетное общеобразовательное учреждение \"Лицей-интернат №24\" г.Нижнекамска Республики Татарстан"]
[{"$f":"A35 + 1","v":35},"Баянов","Андрей","Владимирович","2010-08-11","м","нет",6,6,464,500,"победитель","нет","Кудакаев Марат Радикович","Муниципальное бюджетное общеобразовательное учреждение \"Лицей-интернат №24\" г.Нижнекамска Республики Татарстан"]
[36,"Усманов","Константин","Дмитриевич","2010-08-12","м","нет",6,6,56,500,"участник","нет","Кудакаев Марат Радикович","Муниципальное бюджетное общеобразовательное учреждение \"Лицей-интернат №24\" г.Нижнекамска Республики Татарстан"]
[37,"Мусин","Амирхан","Рустемович","2010-08-13","м","нет",6,6,180,500,"участник","нет","Кудакаев Марат Радикович","Муниципальное бюджетное общеобразовательное учреждение \"Лицей-интернат №24\" г.Нижнекамска Республики Татарстан"]
[38,"Денисов","Ярослав","Сергеевич","2010-08-14","м","нет",6,6,194,500,"участник","нет","Кудакаев Марат Радикович","Муниципальное бюджетное общеобразовательное учреждение \"Лицей-интернат №24\" г.Нижнекамска Республики Татарстан"]
[39,"Дудкин","Иван","Юрьевич","2010-08-15","м","нет",6,6,210,500,"участник","нет","Кудакаев Марат Радикович","Муниципальное бюджетное общеобразовательное учреждение \"Лицей-интернат №24\" г.Нижнекамска Республики Татарстан"]
[40,"Абдуллин","Руслан","Зуфарович?","2010-08-16","м","нет",6,6,230,500,"участник","нет","Кудакаев Марат Радикович","Муниципальное бюджетное общеобразовательное учреждение \"Лицей-интернат №24\" г.Нижнекамска Республики Татарстан"]
[41,"Савельев","Тимур","Дмитриевич","2010-08-17","м","нет",6,6,114,500,"участник","нет","Кудакаев Марат Радикович","Муниципальное бюджетное общеобразовательное учреждение \"Лицей-интернат №24\" г.Нижнекамска Республики Татарстан"]
[42,"Юсупов","Билал","Ильнурович","2010-08-18","м","нет",6,6,159,500,"участник","нет","Кудакаев Марат Радикович","Муниципальное бюджетное общеобразовательное учреждение \"Лицей-интернат №24\" г.Нижнекамска Республики Татарстан"]
[43,"Мусин","Матвей","Александрович","2010-08-19","м","нет",6,6,164,500,"участник","нет","Кудакаев Марат Радикович","Муниципальное бюджетное общеобразовательное учреждение \"Лицей-интернат №24\" г.Нижнекамска Республики Татарстан"]
[44,"Крешков","Даниил","Вячеславович","2010-08-20","м","нет",6,6,159,500,"участник","нет","Кудакаев Марат Радикович","Муниципальное бюджетное общеобразовательное учреждение \"Лицей-интернат №24\" г.Нижнекамска Республики Татарстан"]
[45,"Корнилов","Вадим","Дмитриевич","2010-08-21","м","нет",6,6,159,500,"участник","нет","Кудакаев Марат Радикович","Муниципальное бюджетное общеобразовательное учреждение \"Лицей-интернат №24\" г.Нижнекамска Республики Татарстан"]
[46,"Колпаков","Матвей","Евгеньевич","2010-08-22","м","нет",6,6,143,500,"участник","нет","Кудакаев Марат Радикович","Муниципальное бюджетное общеобразовательное учреждение \"Лицей-интернат №24\" г.Нижнекамска Республики Татарстан"]
[47,"Федоров","Макар","Александрович","2010-08-23","м","нет",6,6,155,500,"участник","нет","Кудакаев Марат Радикович","Муниципальное бюджетное общеобразовательное учреждение \"Лицей-интернат №24\" г.Нижнекамска Республики Татарстан"]
[48,"Савельев","Кирилл","Константинович","2010-08-24","м","нет",6,6,197,500,"участник","нет","Кудакаев Марат Радикович","Муниципальное бюджетное общеобразовательное учреждение \"Лицей-интернат №24\" г.Нижнекамска Республики Татарстан"]
[49,"Мухаметшин","Давид","Рустамович","2010-08-25","м","нет",6,6,146,500,"участник","нет","Кудакаев Марат Радикович","Муниципальное бюджетное общеобразовательное учреждение \"Лицей-интернат №24\" г.Нижнекамска Республики Татарстан"]
[50,"Гапонов","Степан","Евгеньевич","2010-08-26","м","нет",6,6,84,500,"участник","нет","Кудакаев Марат Радикович","Муниципальное бюджетное общеобразовательное учреждение \"Лицей-интернат №24\" г.Нижнекамска Республики Татарстан"]
[51,"Баев","Самир","Ленарович","2010-08-27","м","нет",6,6,170,500,"участник","нет","Кудакаев Марат Радикович","Муниципальное бюджетное общеобразовательное учреждение \"Лицей-интернат №24\" г.Нижнекамска Республики Татарстан"]
[52,"Бадрутдинов","Тимур","Эдуардович","2010-08-28","м","нет",6,6,142,500,"участник","нет","Кудакаев Марат Радикович","Муниципальное бюджетное общеобразовательное учреждение \"Лицей-интернат №24\" г.Нижнекамска Республики Татарстан"]
[53,"Сытин","Михаил","Константинович","2010-08-29","м","нет",6,6,309,500,"участник","нет","Кудакаев Марат Радикович","Муниципальное бюджетное общеобразовательное учреждение \"Лицей-интернат №24\" г.Нижнекамска Республики Татарстан"]
[54,"Зимирев","Артур","Евгеньевич","2009-11-05","м","нет",6,6,416,500,"победитель","нет","Кудакаев Марат Радикович","Муниципальное бюджетное общеобразовательное учреждение \"Лицей-интернат №24\" г.Нижнекамска Республики Татарстан"]
[55,"Рафиков","Али","Артурович","2009-11-06","м","нет",7,7,30,500,"участник","нет","Кудакаев Марат Радикович","Муниципальное бюджетное общеобразовательное учреждение \"Лицей-интернат №24\" г.Нижнекамска Республики Татарстан"]
[56,"Портнов","Егор","Сергеевич","2009-11-07","м","нет",7,7,140,500,"участник","нет","Кудакаев Марат Радикович","Муниципальное бюджетное общеобразовательное учреждение \"Лицей-интернат №24\" г.Нижнекамска Республики Татарстан"]
[57,"Мусин","Алмаз","Альбертович","2009-11-08","м","нет",7,7,0,500,"участник","нет","Кудакаев Марат Радикович","Муниципальное бюджетное общеобразовательное учреждение \"Лицей-интернат №24\" г.Нижнекамска Республики Татарстан"]
[58,"Сабиров","Артур","Василевич","2009-11-09","м","нет",7,7,20,500,"участник","нет","Кудакаев Марат Радикович","Муниципальное бюджетное общеобразовательное учреждение \"Лицей-интернат №24\" г.Нижнекамска Республики Татарстан"]
[59,"Файзуллин","Тимур","Айратович","2009-11-10","м","нет",7,7,140,500,"участник","нет","Кудакаев Марат Радикович","Муниципальное бюджетное общеобразовательное учреждение \"Лицей-интернат №24\" г.Нижнекамска Республики Татарстан"]
[60,"Хафизов","Тимур","Альбертович","2009-11-11","м","нет",7,7,0,500,"участник","нет","Кудакаев Марат Радикович","Муниципальное бюджетное общеобразовательное учреждение \"Лицей-интернат №24\" г.Нижнекамска Республики Татарстан"]
[61,"Ганиев","Тимур","Эрикович","2009-11-12","м","нет",7,7,140,500,"участник","нет","Кудакаев Марат Радикович","Муниципальное бюджетное общеобразовательное учреждение \"Лицей-интернат №24\" г.Нижнекамска Республики Татарстан"]
[62,"Макарихин","Владислав","Денисович","2009-11-13","м","нет",7,7,0,500,"участник","нет","Кудакаев Марат Радикович","Муниципальное бюджетное общеобразовательное учреждение \"Лицей-интернат №24\" г.Нижнекамска Республики Татарстан"]
[63,"Андреев","Данис","Владимирович","2009-11-14","м","нет",7,7,40,500,"участник","нет","Кудакаев Марат Радикович","Муниципальное бюджетное общеобразовательное учреждение \"Лицей-интернат №24\" г.Нижнекамска Республики Татарстан"]
[64,"Сармаев","Максим","Сергеевич","2009-11-15","м","нет",7,7,40,500,"участник","нет","Кудакаев Марат Радикович","Муниципальное бюджетное общеобразовательное учреждение \"Лицей-интернат №24\" г.Нижнекамска Республики Татарстан"]
[65,"Колесников","Герман","Вадимович","2009-11-16","м","нет",7,7,40,500,"участник","нет","Кудакаев Марат Радикович","Муниципальное бюджетное общеобразовательное учреждение \"Лицей-интернат №24\" г.Нижнекамска Республики Татарстан"]
[66,"Никонов","Михаил","Алексеевич","2009-11-17","м","нет",7,7,40,500,"участник","нет","Кудакаев Марат Радикович","Муниципальное бюджетное общеобразовательное учреждение \"Лицей-интернат №24\" г.Нижнекамска Республики Татарстан"]
[67,"Филиппов","Александр","Сергеевич","2009-11-18","м","нет",7,7,0,500,"участник","нет","Кудакаев Марат Радикович","Муниципальное бюджетное общеобразовательное учреждение \"Лицей-интернат №24\" г.Нижнекамска Республики Татарстан"]
[68,"Бердников","Ярослав","Евгеньевич","2009-11-19","м","нет",7,7,40,500,"участник","нет","Кудакаев Марат Радикович","Муниципальное бюджетное общеобразовательное учреждение \"Лицей-интернат №24\" г.Нижнекамска Республики Татарстан"]
[69,"Биктагиров","Нияз","Вахитович","2009-11-20","м","нет",7,7,50,500,"участник","нет","Кудакаев Марат Радикович","Муниципальное бюджетное общеобразовательное учреждение \"Лицей-интернат №24\" г.Нижнекамска Республики Татарстан"]
[70,"Сибгатуллин","Саййид","Булатович","2009-11-21","м","нет",7,7,80,500,"участник","нет","Кудакаев Марат Радикович","Муниципальное бюджетное общеобразовательное учреждение \"Лицей-интернат №24\" г.Нижнекамска Республики Татарстан"]
[71,"Гатауллин","Данияр","Айратович","2009-11-22","м","нет",7,7,0,500,"участник","нет","Кудакаев Марат Радикович","Муниципальное бюджетное общеобразовательное учреждение \"Лицей-интернат №24\" г.Нижнекамска Республики Татарстан"]
[72,"Измайлов","Артем","Маратович","2009-11-23","м","нет",7,7,0,500,"участник","нет","Кудакаев Марат Радикович","Муниципальное бюджетное общеобразовательное учреждение \"Лицей-интернат №24\" г.Нижнекамска Республики Татарстан"]
[73,"Чернышов","Илья","Александрович","2009-06-14","м","нет",7,7,347,500,"призер","нет","Кудакаев Марат Радикович","Муниципальное бюджетное общеобразовательное учреждение \"Лицей-интернат №24\" г.Нижнекамска Республики Татарстан"]
[74,"Биктагиров","Камиль","Вахитович","2009-03-08","м","нет",7,7,337,500,"призер","нет","Кудакаев Марат Радикович","Муниципальное бюджетное общеобразовательное учреждение \"Лицей-интернат №24\" г.Нижнекамска Республики Татарстан"]
[75,"Складчиков","Данила","Сергеевич","2009-03-09","м","нет",7,7,100,500,"участник","нет","Кудакаев Марат Радикович","Муниципальное бюджетное общеобразовательное учреждение \"Лицей-интернат №24\" г.Нижнекамска Республики Татарстан"]
[76,"Федоров","Максим","Николаевич","2009-03-10","м","нет",7,7,0,500,"участник","нет","Кудакаев Марат Радикович","Муниципальное бюджетное общеобразовательное учреждение \"Лицей-интернат №24\" г.Нижнекамска Республики Татарстан"]
[77,"Калимуллин","Амир","Наилевич","2009-04-07","м","нет",7,7,250,500,"призер","нет","Кудакаев Марат Радикович","Муниципальное бюджетное общеобразовательное учреждение \"Лицей-интернат №24\" г.Нижнекамска Республики Татарстан"]
[78,"Дмитриев","Глеб","Николаевич","2009-04-08","м","нет",7,7,170,500,"участник","нет","Кудакаев Марат Радикович","Муниципальное бюджетное общеобразовательное учреждение \"Лицей-интернат №24\" г.Нижнекамска Республики Татарстан"]
[79,"Ибатуллин","Амир","Азатович","2009-05-20","м","нет",7,7,250,500,"призер","нет","Кудакаев Марат Радикович","Муниципальное бюджетное общеобразовательное учреждение \"Лицей-интернат №24\" г.Нижнекамска Республики Татарстан"]
[80,"Малыгин","Егор","Евгеньевич","2009-05-21","м","нет",7,7,150,500,"участник","нет","Кудакаев Марат Радикович","Муниципальное бюджетное общеобразовательное учреждение \"Лицей-интернат №24\" г.Нижнекамска Республики Татарстан"]
[81,"Ахметшин","Амир","Русланович","2009-05-22","м","нет",7,7,285,500,"призер","нет","Кудакаев Марат Радикович","Муниципальное бюджетное общеобразовательное учреждение \"Лицей-интернат №24\" г.Нижнекамска Республики Татарстан"]
[82,"Муртазин","Сайдаш","Маратович","2009-05-23","м","нет",7,7,255,500,"призер","нет","Кудакаев Марат Радикович","Муниципальное бюджетное общеобразовательное учреждение \"Лицей-интернат №24\" г.Нижнекамска Республики Татарстан"]
[83,"Шакиров","Алим","Земфирович","2009-01-14","м","нет",7,7,387,500,"победитель","нет","Кудакаев Марат Радикович","Муниципальное бюджетное общеобразовательное учреждение \"Лицей-интернат №24\" г.Нижнекамска Республики Татарстан"]
[84,"Бурганов","Карим","Айратович","2009-01-15","м","нет",8,8,80,500,"участник","нет","Кудакаев Марат Радикович","Муниципальное бюджетное общеобразовательное учреждение \"Лицей-интернат №24\" г.Нижнекамска Республики Татарстан"]
[85,"Аллун","Абдульбари","Фейсал","2008-06-08","м","нет",8,8,270,500,"призер","нет","Кудакаев Марат Радикович","Муниципальное бюджетное общеобразовательное учреждение \"Лицей-интернат №24\" г.Нижнекамска Республики Татарстан"]
[86,"Габидуллин","Саит","Раилевич","2008-06-09","м","нет",8,8,0,500,"участник","нет","Кудакаев Марат Радикович","Муниципальное бюджетное общеобразовательное учреждение \"Лицей-интернат №24\" г.Нижнекамска Республики Татарстан"]
[87,"Фатыхов","Камиль","Ленарович","2008-06-10","м","нет",8,8,100,500,"участник","нет","Кудакаев Марат Радикович","Муниципальное бюджетное общеобразовательное учреждение \"Лицей-интернат №24\" г.Нижнекамска Республики Татарстан"]
[88,"Сукаев","Ильяс","Шамилевич","2008-06-11","м","нет",8,8,0,500,"участник","нет","Кудакаев Марат Радикович","Муниципальное бюджетное общеобразовательное учреждение \"Лицей-интернат №24\" г.Нижнекамска Республики Татарстан"]
[89,"Шульга","Ярослав","Андреевич","2008-06-27","м","нет",8,8,435,500,"победитель","нет","Кудакаев Марат Радикович","Муниципальное бюджетное общеобразовательное учреждение \"Лицей-интернат №24\" г.Нижнекамска Республики Татарстан"]
[90,"Мухаметшин","Самат","Рустамович","2008-06-28","м","нет",8,8,160,500,"участник","нет","Кудакаев Марат Радикович","Муниципальное бюджетное общеобразовательное учреждение \"Лицей-интернат №24\" г.Нижнекамска Республики Татарстан"]
[91,"Тимченко","Иван","Андреевич","2008-06-29","м","нет",8,8,120,500,"участник","нет","Кудакаев Марат Радикович","Муниципальное бюджетное общеобразовательное учреждение \"Лицей-интернат №24\" г.Нижнекамска Республики Татарстан"]
[92,"Яруллин","Ильяс","Фаязович","2008-06-30","м","нет",8,8,50,500,"участник","нет","Кудакаев Марат Радикович","Муниципальное бюджетное общеобразовательное учреждение \"Лицей-интернат №24\" г.Нижнекамска Республики Татарстан"]
[93,"Багавиев","Талгат","Рустамович","2008-07-01","м","нет",8,8,0,500,"участник","нет","Кудакаев Марат Радикович","Муниципальное бюджетное общеобразовательное учреждение \"Лицей-интернат №24\" г.Нижнекамска Республики Татарстан"]
[94,"Замалетдинов","Раиль","Маратович","2008-07-02","м","нет",8,8,0,500,"участник","нет","Кудакаев Марат Радикович","Муниципальное бюджетное общеобразовательное учреждение \"Лицей-интернат №24\" г.Нижнекамска Республики Татарстан"]
[95,"Миндубаев","Тимур","Русланович","2008-04-21","м","нет",8,8,270,500,"призер","нет","Кудакаев Марат Радикович","Муниципальное бюджетное общеобразовательное учреждение \"Лицей-интернат №24\" г.Нижнекамска Республики Татарстан"]
[96,"Киямов","Самат","Рустамович","2008-04-22","м","нет",8,8,132,500,"участник","нет","Кудакаев Марат Радикович","Муниципальное бюджетное общеобразовательное учреждение \"Лицей-интернат №24\" г.Нижнекамска Республики Татарстан"]
[97,"Шайхутдинов","Самир","Ильдарович","2008-04-23","м","нет",8,8,200,500,"участник","нет","Кудакаев Марат Радикович","Муниципальное бюджетное общеобразовательное учреждение \"Лицей-интернат №24\" г.Нижнекамска Республики Татарстан"]
[98,"Власьев","Илья","Владислввович","2008-04-24","м","нет",8,8,127,500,"участник","нет","Кудакаев Марат Радикович","Муниципальное бюджетное общеобразовательное учреждение \"Лицей-интернат №24\" г.Нижнекамска Республики Татарстан"]
[{"$f":"A99 + 1","v":99},"Кашапов","Арсен","Русланович","2008-04-25","м","нет",8,8,227,500,"участник","нет","Кудакаев Марат Радикович","Муниципальное бюджетное общеобразовательное учреждение \"Лицей-интернат №24\" г.Нижнекамска Республики Татарстан"]
[100,"Рустаев","Самир","Рустамович","2008-04-26","м","нет",8,8,180,500,"участник","нет","Кудакаев Марат Радикович","Муниципальное бюджетное общеобразовательное учреждение \"Лицей-интернат №24\" г.Нижнекамска Республики Татарстан"]
[101,"Акулинин","Александр","Сергеевич","2008-04-27","м","нет",8,8,200,500,"участник","нет","Кудакаев Марат Радикович","Муниципальное бюджетное общеобразовательное учреждение \"Лицей-интернат №24\" г.Нижнекамска Республики Татарстан"]
[102,"Валиуллин","Ильяс","Альбертович","2008-05-08","м","нет",8,8,260,500,"призер","нет","Кудакаев Марат Радикович","Муниципальное бюджетное общеобразовательное учреждение \"Лицей-интернат №24\" г.Нижнекамска Республики Татарстан"]
[103,"Галимуллин","Самат","Маратович","2008-05-09","м","нет",8,8,197,500,"участник","нет","Кудакаев Марат Радикович","Муниципальное бюджетное общеобразовательное учреждение \"Лицей-интернат №24\" г.Нижнекамска Республики Татарстан"]
[104,"Салихов","Самир","Фэнисович","2008-05-10","м","нет",8,8,190,500,"участник","нет","Кудакаев Марат Радикович","Муниципальное бюджетное общеобразовательное учреждение \"Лицей-интернат №24\" г.Нижнекамска Республики Татарстан"]
[105,"Шабуров","Тимур","Ринатович","2008-05-03","м","нет",8,8,302,500,"призер","нет","Кудакаев Марат Радикович","Муниципальное бюджетное общеобразовательное учреждение \"Лицей-интернат №24\" г.Нижнекамска Республики Татарстан"]
[106,"Капралов","Дамир","Станиславович","2008-05-04","м","нет",8,8,70,500,"участник","нет","Кудакаев Марат Радикович","Муниципальное бюджетное общеобразовательное учреждение \"Лицей-интернат №24\" г.Нижнекамска Республики Татарстан"]
[107,"Семенов","Дмитрий","Владимирович","2008-05-05","м","нет",8,8,170,500,"участник","нет","Кудакаев Марат Радикович","Муниципальное бюджетное общеобразовательное учреждение \"Лицей-интернат №24\" г.Нижнекамска Республики Татарстан"]
[108,"Хисамиев","Ильяс","Ильнарович","2008-05-06","м","нет",8,8,197,500,"участник","нет","Кудакаев Марат Радикович","Муниципальное бюджетное общеобразовательное учреждение \"Лицей-интернат №24\" г.Нижнекамска Республики Татарстан"]
[109,"Якушев","Глеб","Евгеньевич","2008-05-07","м","нет",8,8,197,500,"участник","нет","Кудакаев Марат Радикович","Муниципальное бюджетное общеобразовательное учреждение \"Лицей-интернат №24\" г.Нижнекамска Республики Татарстан"]
[110,"Галиуллин","Айрат","Маратович","2008-05-08","м","нет",8,8,200,500,"участник","нет","Кудакаев Марат Радикович","Муниципальное бюджетное общеобразовательное учреждение \"Лицей-интернат №24\" г.Нижнекамска Республики Татарстан"]
[111,"Хузеев","Эльдар","Айратович","2008-05-09","м","нет",8,8,197,500,"участник","нет","Кудакаев Марат Радикович","Муниципальное бюджетное общеобразовательное учреждение \"Лицей-интернат №24\" г.Нижнекамска Республики Татарстан"]
[112,"Усманов","Булат","Ильдарович","2008-05-10","м","нет",8,8,197,500,"участник","нет","Кудакаев Марат Радикович","Муниципальное бюджетное общеобразовательное учреждение \"Лицей-интернат №24\" г.Нижнекамска Республики Татарстан"]
[113,"Михайлов","Данила","Евгеньевич","2008-05-11","м","нет",8,8,120,500,"участник","нет","Кудакаев Марат Радикович","Муниципальное бюджетное общеобразовательное учреждение \"Лицей-интернат №24\" г.Нижнекамска Республики Татарстан"]
[114,"Казаков","Богдан","Денисович","2008-05-12","м","нет",8,8,0,500,"участник","нет","Кудакаев Марат Радикович","Муниципальное бюджетное общеобразовательное учреждение \"Лицей-интернат №24\" г.Нижнекамска Республики Татарстан"]
[115,"Колзин","Матвей","Андреевич","2008-05-13","м","нет",9,9,10,500,"участник","нет","Кудакаев Марат Радикович","Муниципальное бюджетное общеобразовательное учреждение \"Лицей-интернат №24\" г.Нижнекамска Республики Татарстан"]
[116,"Хакимуллин","Ислам","Наилевич","2008-05-14","м","нет",9,9,0,500,"участник","нет","Кудакаев Марат Радикович","Муниципальное бюджетное общеобразовательное учреждение \"Лицей-интернат №24\" г.Нижнекамска Республики Татарстан"]
[117,"Абдуллин","Данис","Зуфарович","2008-05-15","м","нет",9,9,40,500,"участник","нет","Кудакаев Марат Радикович","Муниципальное бюджетное общеобразовательное учреждение \"Лицей-интернат №24\" г.Нижнекамска Республики Татарстан"]
[118,"Кудашов","Камиль","Азатович","2008-05-16","м","нет",9,9,0,500,"участник","нет","Кудакаев Марат Радикович","Муниципальное бюджетное общеобразовательное учреждение \"Лицей-интернат №24\" г.Нижнекамска Республики Татарстан"]
[119,"Кожевников","Павел","Александрович","2008-05-17","м","нет",9,9,0,500,"участник","нет","Кудакаев Марат Радикович","Муниципальное бюджетное общеобразовательное учреждение \"Лицей-интернат №24\" г.Нижнекамска Республики Татарстан"]
[120,"Насибуллин","Карим","Маратович","2008-05-18","м","нет",9,9,0,500,"участник","нет","Кудакаев Марат Радикович","Муниципальное бюджетное общеобразовательное учреждение \"Лицей-интернат №24\" г.Нижнекамска Республики Татарстан"]
[121,"Ларионов","Дмитрий","Юрьевич","2008-05-19","м","нет",9,9,0,500,"участник","нет","Кудакаев Марат Радикович","Муниципальное бюджетное общеобразовательное учреждение \"Лицей-интернат №24\" г.Нижнекамска Республики Татарстан"]
[122,"Шагидуллин","Исмаил","Юлаевич","2008-05-20","м","нет",9,9,0,500,"участник","нет","Кудакаев Марат Радикович","Муниципальное бюджетное общеобразовательное учреждение \"Лицей-интернат №24\" г.Нижнекамска Республики Татарстан"]
[123,"Григорьев","Эдуард","Васильевич","2007-05-21","м","нет",9,9,0,500,"участник","нет","Кудакаев Марат Радикович","Муниципальное бюджетное общеобразовательное учреждение \"Лицей-интернат №24\" г.Нижнекамска Республики Татарстан"]
[124,"Обманщин","Евгений","Алексеевич","2007-05-22","м","нет",9,9,45,500,"участник","нет","Кудакаев Марат Радикович","Муниципальное бюджетное общеобразовательное учреждение \"Лицей-интернат №24\" г.Нижнекамска Республики Татарстан"]
[125,"Тагиров","Карим","Радифович","2007-05-23","м","нет",9,9,45,500,"участник","нет","Кудакаев Марат Радикович","Муниципальное бюджетное общеобразовательное учреждение \"Лицей-интернат №24\" г.Нижнекамска Республики Татарстан"]
[126,"Айтуганов","Айдар","Ильдарович","2007-05-24","м","нет",9,9,0,500,"участник","нет","Кудакаев Марат Радикович","Муниципальное бюджетное общеобразовательное учреждение \"Лицей-интернат №24\" г.Нижнекамска Республики Татарстан"]
[127,"Хамидуллин","Райнур","Ринатович","2007-05-25","м","нет",9,9,0,500,"участник","нет","Кудакаев Марат Радикович","Муниципальное бюджетное общеобразовательное учреждение \"Лицей-интернат №24\" г.Нижнекамска Республики Татарстан"]
[128,"Калимуллин","Айзат","Наилович","2007-05-26","м","нет",9,9,0,500,"участник","нет","Кудакаев Марат Радикович","Муниципальное бюджетное общеобразовательное учреждение \"Лицей-интернат №24\" г.Нижнекамска Республики Татарстан"]
[129,"Сайфуллин","Рафаэль","Рамисович","2007-05-27","м","нет",9,9,0,500,"участник","нет","Кудакаев Марат Радикович","Муниципальное бюджетное общеобразовательное учреждение \"Лицей-интернат №24\" г.Нижнекамска Республики Татарстан"]
[130,"Шакуров","Айзат","Азатович","2007-05-28","м","нет",9,9,0,500,"участник","нет","Кудакаев Марат Радикович","Муниципальное бюджетное общеобразовательное учреждение \"Лицей-интернат №24\" г.Нижнекамска Республики Татарстан"]
[131,"Хамидуллин","Ислам","Альбертович","2007-05-29","м","нет",9,9,0,500,"участник","нет","Кудакаев Марат Радикович","Муниципальное бюджетное общеобразовательное учреждение \"Лицей-интернат №24\" г.Нижнекамска Республики Татарстан"]
[132,"Хисамеев","Камиль","Марселевич","2007-05-30","м","нет",9,9,0,500,"участник","нет","Кудакаев Марат Радикович","Муниципальное бюджетное общеобразовательное учреждение \"Лицей-интернат №24\" г.Нижнекамска Республики Татарстан"]
[133,"Андреев","Валерий","Вячеславович","2007-05-31","м","нет",9,9,20,500,"участник","нет","Кудакаев Марат Радикович","Муниципальное бюджетное общеобразовательное учреждение \"Лицей-интернат №24\" г.Нижнекамска Республики Татарстан"]
[134,"Зиньков","Андрей","Александрович","2007-06-01","м","нет",10,10,155,500,"участник","нет","Гилязеев Рамиль Фаридович","Муниципальное бюджетное общеобразовательное учреждение \"Лицей-интернат №24\" г.Нижнекамска Республики Татарстан"]
[135,"Окунев","Павел","Олегович","2007-06-02","м","нет",10,10,0,500,"участник","нет","Гилязеев Рамиль Фаридович","Муниципальное бюджетное общеобразовательное учреждение \"Лицей-интернат №24\" г.Нижнекамска Республики Татарстан"]
[136,"Шамсутдинов","Альберт","Олегович","2007-06-03","м","нет",10,10,25,500,"участник","нет","Гилязеев Рамиль Фаридович","Муниципальное бюджетное общеобразовательное учреждение \"Лицей-интернат №24\" г.Нижнекамска Республики Татарстан"]
[137,"Ахмедшин","Айнур","Олегович","2007-06-04","м","нет",10,10,0,500,"участник","нет","Гилязеев Рамиль Фаридович","Муниципальное бюджетное общеобразовательное учреждение \"Лицей-интернат №24\" г.Нижнекамска Республики Татарстан"]
[138,"Налимов","Вадим","Павлович","2007-06-05","м","нет",10,10,75,500,"участник","нет","Гилязеев Рамиль Фаридович","Муниципальное бюджетное общеобразовательное учреждение \"Лицей-интернат №24\" г.Нижнекамска Республики Татарстан"]
[139,"Зарипов","Самат","Азатович","2007-06-06","м","нет",10,10,75,500,"участник","нет","Гилязеев Рамиль Фаридович","Муниципальное бюджетное общеобразовательное учреждение \"Лицей-интернат №24\" г.Нижнекамска Республики Татарстан"]
[140,"Садыков","Артур","Азатович","2007-06-07","м","нет",10,10,0,500,"участник","нет","Гилязеев Рамиль Фаридович","Муниципальное бюджетное общеобразовательное учреждение \"Лицей-интернат №24\" г.Нижнекамска Республики Татарстан"]
[141,"Зотов","Павел","Васильевич","2007-06-08","м","нет",10,10,120,500,"участник","нет","Гилязеев Рамиль Фаридович","Муниципальное бюджетное общеобразовательное учреждение \"Лицей-интернат №24\" г.Нижнекамска Республики Татарстан"]
[142,"Мифтахутдинов","Карим","Васильевич","2007-06-09","м","нет",10,10,0,500,"участник","нет","Гилязеев Рамиль Фаридович","Муниципальное бюджетное общеобразовательное учреждение \"Лицей-интернат №24\" г.Нижнекамска Республики Татарстан"]
[143,"Матеров","Михаил","Юрьевич","2007-06-10","м","нет",10,10,0,500,"участник","нет","Гилязеев Рамиль Фаридович","Муниципальное бюджетное общеобразовательное учреждение \"Лицей-интернат №24\" г.Нижнекамска Республики Татарстан"]
[144,"Гафаров","Тимур","Бахтиярович","2007-06-11","м","нет",10,10,35,500,"участник","нет","Гилязеев Рамиль Фаридович","Муниципальное бюджетное общеобразовательное учреждение \"Лицей-интернат №24\" г.Нижнекамска Республики Татарстан"]
[145,"Марданов","Самир","Ришатович","2007-06-12","м","нет",10,10,100,500,"участник","нет","Гилязеев Рамиль Фаридович","Муниципальное бюджетное общеобразовательное учреждение \"Лицей-интернат №24\" г.Нижнекамска Республики Татарстан"]
[146,"Хисматуллин","Арслан","Рифатович","2007-06-13","м","нет",10,10,85,500,"участник","нет","Гилязеев Рамиль Фаридович","Муниципальное бюджетное общеобразовательное учреждение \"Лицей-интернат №24\" г.Нижнекамска Республики Татарстан"]
[147,"Архипов","Вадим","Александрович","2007-06-14","м","нет",10,10,0,500,"участник","нет","Гилязеев Рамиль Фаридович","Муниципальное бюджетное общеобразовательное учреждение \"Лицей-интернат №24\" г.Нижнекамска Республики Татарстан"]
[148,"Назаров","Тимур","Дмитриевич","2007-06-15","м","нет",10,10,85,500,"участник","нет","Гилязеев Рамиль Фаридович","Муниципальное бюджетное общеобразовательное учреждение \"Лицей-интернат №24\" г.Нижнекамска Республики Татарстан"]
[149,"Носов","Владислав","Дмитриевич","2007-06-16","м","нет",10,10,80,500,"участник","нет","Гилязеев Рамиль Фаридович","Муниципальное бюджетное общеобразовательное учреждение \"Лицей-интернат №24\" г.Нижнекамска Республики Татарстан"]
[150,"Кузьмин","Артем","Дмитриевич","2007-06-17","м","нет",10,10,85,500,"участник","нет","Гилязеев Рамиль Фаридович","Муниципальное бюджетное общеобразовательное учреждение \"Лицей-интернат №24\" г.Нижнекамска Республики Татарстан"]
[151,"Гимранов","Камиль","Рустемович","2007-06-18","м","нет",11,11,50,500,"участник","нет","Гилязеев Рамиль Фаридович","Муниципальное бюджетное общеобразовательное учреждение \"Лицей-интернат №24\" г.Нижнекамска Республики Татарстан"]
[152,"Сафин","Салих","Ришатович","2007-06-19","м","нет",11,11,0,500,"участник","нет","Гилязеев Рамиль Фаридович","Муниципальное бюджетное общеобразовательное учреждение \"Лицей-интернат №24\" г.Нижнекамска Республики Татарстан"]
[153,"Макаршин","Тимофей","Алексеевич","2007-06-20","м","нет",11,11,0,500,"участник","нет","Гилязеев Рамиль Фаридович","Муниципальное бюджетное общеобразовательное учреждение \"Лицей-интернат №24\" г.Нижнекамска Республики Татарстан"]
[154,"Кислицын","Илья","Александрович","2006-06-21","м","нет",11,11,0,500,"участник","нет","Гилязеев Рамиль Фаридович","Муниципальное бюджетное общеобразовательное учреждение \"Лицей-интернат №24\" г.Нижнекамска Республики Татарстан"]
[155,"Булаев","Ян","Бауржанович","2006-06-22","м","нет",11,11,0,500,"участник","нет","Гилязеев Рамиль Фаридович","Муниципальное бюджетное общеобразовательное учреждение \"Лицей-интернат №24\" г.Нижнекамска Республики Татарстан"]
[156,"Латыпов","Савелий","Станиславович","2006-06-23","м","нет",11,11,0,500,"участник","нет","Гилязеев Рамиль Фаридович","Муниципальное бюджетное общеобразовательное учреждение \"Лицей-интернат №24\" г.Нижнекамска Республики Татарстан"]
[157,"Пиянзин","Руслан","Дмитриевич","2006-06-24","м","нет",11,11,0,500,"участник","нет","Гилязеев Рамиль Фаридович","Муниципальное бюджетное общеобразовательное учреждение \"Лицей-интернат №24\" г.Нижнекамска Республики Татарстан"]
[158,"Мухаметзянов","Ильнур","Радикович","2004-12-08","м","нет",11,11,360,500,"призер","да","Гилязеев Рамиль Фаридович","Муниципальное бюджетное общеобразовательное учреждение \"Лицей-интернат №24\" г.Нижнекамска Республики Татарстан"]
[159,"Абдуллин","Данияр","Зуфарович","2005-01-04","м","нет",11,11,315,500,"призер","нет","Гилязеев Рамиль Фаридович","Муниципальное бюджетное общеобразовательное учреждение \"Лицей-интернат №24\" г.Нижнекамска Республики Татарстан"]
[160,"Валиев","Марсель","Расимович","2005-01-05","м","нет",11,11,190,500,"участник","нет","Гилязеев Рамиль Фаридович","Муниципальное бюджетное общеобразовательное учреждение \"Лицей-интернат №24\" г.Нижнекамска Республики Татарстан"]
[161,"Шамсемухаметов","Радмир","Ранасович","2005-06-09","м","нет",11,11,470,500,"победитель","да","Гилязеев Рамиль Фаридович","Муниципальное бюджетное общеобразовательное учреждение \"Лицей-интернат №24\" г.Нижнекамска Республики Татарстан"]
[162,"Ибятуллин","Расул","Расимович","2005-06-10","м","нет",11,11,0,500,"участник","нет","Гилязеев Рамиль Фаридович","Муниципальное бюджетное общеобразовательное учреждение \"Лицей-интернат №24\" г.Нижнекамска Республики Татарстан"]
[{"$f":"A163 + 1","v":163},"Абдулхаков","Илсаф","Рифгатович","2005-06-13","м","нет",11,11,330,500,"призер","нет","Гилязеев Рамиль Фаридович","Муниципальное бюджетное общеобразовательное учреждение \"Лицей-интернат №24\" г.Нижнекамска Республики Татарстан"]

{"sheet":"Лист2","index":1,"n_rows":3,"n_cols":7,"rows_kept":3}
["м",null,"Победитель",null,"да",null,"Победитель"]
["ж",null,"Призер",null,"нет",null,"Призер"]
[null,null,"Участник"]